[Event "Early-Titled-Tuesday-Blitz-May-28-2024"]
[Site "Chess.com"]
[Date "2024.05.28"]
[Round "3"]
[White "Iskusnyh"]
[Black "ChessAdvanceUSA"]
[Result "1/2-1/2"]
[WhiteElo "2611"]
[BlackElo "2453"]
[TimeControl "180+1"]
[EndTime "8:28:33 PDT"]
[Termination "Game drawn by repetition"]

1. d4 {[%clk 0:03:00.9]} 1... Nc6 {[%clk 0:02:55.9]} 2. Nf3 {[%clk 0:02:57.1]}
2... g6 {[%clk 0:02:54.9]} 3. Nc3 {[%clk 0:02:46.6]} 3... Bg7 {[%clk 0:02:54.9]}
4. e4 {[%clk 0:02:46.6]} 4... d6 {[%clk 0:02:55.1]} 5. h3 {[%clk 0:02:46.4]}
5... e5 {[%clk 0:02:54.2]} 6. Be3 {[%clk 0:02:44.5]} 6... exd4 {[%clk
0:02:52.9]} 7. Nxd4 {[%clk 0:02:43]} 7... Nge7 {[%clk 0:02:53.8]} 8. Qd2 {[%clk
0:02:35.3]} 8... O-O {[%clk 0:02:49.5]} 9. O-O-O {[%clk 0:02:34.8]} 9... Nxd4
{[%clk 0:02:38.1]} 10. Bxd4 {[%clk 0:02:34.3]} 10... Be6 {[%clk 0:02:38.8]} 11.
Bxg7 {[%clk 0:02:26.1]} 11... Kxg7 {[%clk 0:02:39.7]} 12. g4 {[%clk 0:02:22.1]}
12... Nc6 {[%clk 0:02:37.5]} 13. f4 {[%clk 0:02:21.1]} 13... Qh4 {[%clk
0:02:29.2]} 14. Bg2 {[%clk 0:02:03]} 14... Rae8 {[%clk 0:02:27.3]} 15. Rhf1
{[%clk 0:01:54.7]} 15... f6 {[%clk 0:02:25.7]} 16. Kb1 {[%clk 0:01:45.3]} 16...
Re7 {[%clk 0:02:25.6]} 17. Ne2 {[%clk 0:01:11.2]} 17... Bc4 {[%clk 0:02:17.1]}
18. Rfe1 {[%clk 0:01:00.2]} 18... Bxe2 {[%clk 0:02:15.9]} 19. Rxe2 {[%clk
0:01:00.5]} 19... g5 {[%clk 0:02:12.7]} 20. Rf1 {[%clk 0:00:58.1]} 20... h6
{[%clk 0:02:09.7]} 21. Ref2 {[%clk 0:00:48.9]} 21... Qg3 {[%clk 0:01:54.6]} 22.
e5 {[%clk 0:00:40.9]} 22... fxe5 {[%clk 0:01:47]} 23. Bxc6 {[%clk 0:00:36.5]}
23... bxc6 {[%clk 0:01:43.3]} 24. fxg5 {[%clk 0:00:27.2]} 24... Rxf2 {[%clk
0:01:37.4]} 25. gxh6+ {[%clk 0:00:27.1]} 25... Kh7 {[%clk 0:01:16.6]} 26. Qxf2
{[%clk 0:00:28]} 26... Qxf2 {[%clk 0:01:14.5]} 27. Rxf2 {[%clk 0:00:28.9]} 27...
Kxh6 {[%clk 0:01:14.5]} 28. Rf5 {[%clk 0:00:28.5]} 28... Kg6 {[%clk 0:01:08.4]}
29. Kc1 {[%clk 0:00:26]} 29... Rf7 {[%clk 0:01:08.6]} 30. Rxf7 {[%clk
0:00:23.3]} 30... Kxf7 {[%clk 0:01:09.5]} 31. Kd2 {[%clk 0:00:22.4]} 31... d5
{[%clk 0:01:09.6]} 32. Ke3 {[%clk 0:00:21.8]} 32... e4 {[%clk 0:01:07.1]} 33.
Kf4 {[%clk 0:00:18.9]} 33... c5 {[%clk 0:01:02.2]} 34. c4 {[%clk 0:00:16.8]}
34... c6 {[%clk 0:01:02]} 35. h4 {[%clk 0:00:17.3]} 35... Kf6 {[%clk 0:00:59.1]}
36. h5 {[%clk 0:00:17.3]} 36... Kg7 {[%clk 0:00:55.5]} 37. g5 {[%clk 0:00:17.5]}
37... Kh7 {[%clk 0:00:55.5]} 38. b3 {[%clk 0:00:17.4]} 38... a5 {[%clk
0:00:53.8]} 39. Ke3 {[%clk 0:00:16.3]} 39... Kg7 {[%clk 0:00:53.7]} 40. Kf4
{[%clk 0:00:16.8]} 40... Kh7 {[%clk 0:00:53.8]} 41. Kg4 {[%clk 0:00:17.7]} 41...
Kg7 {[%clk 0:00:54.2]} 42. Kh4 {[%clk 0:00:18]} 42... d4 {[%clk 0:00:50.1]} 43.
Kg3 {[%clk 0:00:17.7]} 43... d3 {[%clk 0:00:44]} 44. Kf2 {[%clk 0:00:16.2]}
44... d2 {[%clk 0:00:43.9]} 45. Ke2 {[%clk 0:00:16.5]} 45... e3 {[%clk
0:00:44.4]} 46. Kd1 {[%clk 0:00:15.6]} 46... Kf7 {[%clk 0:00:43.4]} 47. Ke2
{[%clk 0:00:15]} 47... Kg7 {[%clk 0:00:43.5]} 48. Kd1 {[%clk 0:00:14.5]} 48...
Kh7 {[%clk 0:00:43.8]} 49. Ke2 {[%clk 0:00:14.7]} 49... Kg7 {[%clk 0:00:44.2]}
1/2-1/2

[Event "Early-Titled-Tuesday-Blitz-May-28-2024"]
[Site "Chess.com"]
[Date "2024.05.28"]
[Round "3"]
[White "NewBornNow"]
[Black "NovakRatko"]
[Result "1-0"]
[WhiteElo "2807"]
[BlackElo "2385"]
[TimeControl "180+1"]
[EndTime "8:28:34 PDT"]
[Termination "NewBornNow won by checkmate"]

1. e4 {[%clk 0:03:00.7]} 1... d5 {[%clk 0:02:52.6]} 2. exd5 {[%clk 0:02:59.8]}
2... c6 {[%clk 0:02:53.2]} 3. dxc6 {[%clk 0:02:58.8]} 3... Nxc6 {[%clk
0:02:54.1]} 4. Nf3 {[%clk 0:02:57.4]} 4... e5 {[%clk 0:02:54.3]} 5. Nc3 {[%clk
0:02:57.3]} 5... Bc5 {[%clk 0:02:53.6]} 6. Bb5 {[%clk 0:02:56.5]} 6... Ne7
{[%clk 0:02:53.8]} 7. d3 {[%clk 0:02:56.4]} 7... O-O {[%clk 0:02:53.5]} 8. Bxc6
{[%clk 0:02:48.8]} 8... Nxc6 {[%clk 0:02:53.3]} 9. Be3 {[%clk 0:02:44.7]} 9...
Bb4 {[%clk 0:02:51.8]} 10. O-O {[%clk 0:02:30.5]} 10... Bg4 {[%clk 0:02:51.4]}
11. h3 {[%clk 0:02:30.4]} 11... Bh5 {[%clk 0:02:51.6]} 12. Ne4 {[%clk
0:02:30.5]} 12... h6 {[%clk 0:02:49.8]} 13. Ng3 {[%clk 0:02:30]} 13... Bg6
{[%clk 0:02:49.6]} 14. a3 {[%clk 0:02:26.8]} 14... Bd6 {[%clk 0:02:49.1]} 15.
Ne4 {[%clk 0:02:25.1]} 15... Bh5 {[%clk 0:02:44.4]} 16. Ng3 {[%clk 0:02:23.9]}
16... Bg6 {[%clk 0:02:43.8]} 17. Re1 {[%clk 0:02:20.2]} 17... f5 {[%clk
0:02:43.5]} 18. Bd2 {[%clk 0:02:20.3]} 18... Qc7 {[%clk 0:02:41.8]} 19. b4
{[%clk 0:02:03.3]} 19... a6 {[%clk 0:02:32.4]} 20. Bc3 {[%clk 0:01:54.5]} 20...
Rae8 {[%clk 0:02:12.3]} 21. Bb2 {[%clk 0:01:50.4]} 21... e4 {[%clk 0:02:07]} 22.
dxe4 {[%clk 0:01:43.1]} 22... Bxg3 {[%clk 0:02:04.3]} 23. fxg3 {[%clk
0:01:35.9]} 23... fxe4 {[%clk 0:01:56.1]} 24. Nh4 {[%clk 0:01:31.1]} 24... Qxg3
{[%clk 0:01:55.8]} 25. Qg4 {[%clk 0:01:21.6]} 25... Qxg4 {[%clk 0:01:42.6]} 26.
hxg4 {[%clk 0:01:21.3]} 26... Bh7 {[%clk 0:01:40.5]} 27. Rad1 {[%clk 0:01:19.6]}
27... g5 {[%clk 0:01:31.7]} 28. Nf5 {[%clk 0:00:58.5]} 28... Bxf5 {[%clk
0:01:30.8]} 29. gxf5 {[%clk 0:00:57.8]} 29... Rxf5 {[%clk 0:01:31]} 30. Rd6
{[%clk 0:00:57.8]} 30... e3 {[%clk 0:01:15.6]} 31. Rxh6 {[%clk 0:00:55.5]} 31...
Rf2 {[%clk 0:01:15.3]} 32. Rh8+ {[%clk 0:00:46.9]} 32... Kf7 {[%clk 0:01:13.3]}
33. Rxe8 {[%clk 0:00:47.2]} 33... Rxc2 {[%clk 0:01:05.7]} 34. R8xe3 {[%clk
0:00:46.3]} 34... Rxb2 {[%clk 0:01:04.9]} 35. Rf3+ {[%clk 0:00:44.9]} 35... Kg6
{[%clk 0:01:03.2]} 36. Re6+ {[%clk 0:00:44.8]} 36... Kh5 {[%clk 0:01:03.1]} 37.
Re4 {[%clk 0:00:36.7]} 37... Rd2 {[%clk 0:00:57.7]} 38. Kh2 {[%clk 0:00:35.9]}
38... Nd4 {[%clk 0:00:55.3]} 39. Rf7 {[%clk 0:00:34.9]} 39... b5 {[%clk
0:00:39]} 40. Rf6 {[%clk 0:00:30.7]} 40... g4 {[%clk 0:00:30.4]} 41. Re5+ {[%clk
0:00:23.6]} 41... Kh4 {[%clk 0:00:29.7]} 42. Rh6# {[%clk 0:00:23.2]} 1-0

[Event "Early-Titled-Tuesday-Blitz-May-28-2024"]
[Site "Chess.com"]
[Date "2024.05.28"]
[Round "3"]
[White "verrbaa"]
[Black "andrew-blr"]
[Result "0-1"]
[WhiteElo "2433"]
[BlackElo "2612"]
[TimeControl "180+1"]
[EndTime "8:28:38 PDT"]
[Termination "andrew-blr won on time"]

1. e4 {[%clk 0:02:58.4]} 1... c5 {[%clk 0:02:59.7]} 2. Nf3 {[%clk 0:02:57.1]}
2... e6 {[%clk 0:03:00]} 3. d4 {[%clk 0:02:56.3]} 3... cxd4 {[%clk 0:03:00.9]}
4. Nxd4 {[%clk 0:02:56.8]} 4... Bc5 {[%clk 0:03:00.7]} 5. Nb3 {[%clk 0:02:49.6]}
5... Bb6 {[%clk 0:03:00.3]} 6. c4 {[%clk 0:02:38.7]} 6... Ne7 {[%clk 0:02:59.3]}
7. Nc3 {[%clk 0:02:30.7]} 7... O-O {[%clk 0:02:58.5]} 8. c5 {[%clk 0:02:10.9]}
8... Bc7 {[%clk 0:02:57.8]} 9. Be2 {[%clk 0:02:10.9]} 9... f5 {[%clk 0:02:57.6]}
10. Bg5 {[%clk 0:01:50.4]} 10... h6 {[%clk 0:02:43.4]} 11. Bxe7 {[%clk 0:01:50]}
11... Qxe7 {[%clk 0:02:43.4]} 12. exf5 {[%clk 0:01:37.3]} 12... Rxf5 {[%clk
0:02:42.3]} 13. O-O {[%clk 0:01:37.2]} 13... Na6 {[%clk 0:02:41.2]} 14. Nb5
{[%clk 0:01:24.7]} 14... Be5 {[%clk 0:02:38.4]} 15. Qc2 {[%clk 0:01:19.5]} 15...
Nb4 {[%clk 0:02:11.4]} 16. Qc4 {[%clk 0:01:18.8]} 16... Nd5 {[%clk 0:02:07.8]}
17. Rad1 {[%clk 0:01:06.2]} 17... Bxb2 {[%clk 0:02:04]} 18. Bf3 {[%clk
0:00:56.6]} 18... Qg5 {[%clk 0:01:17.7]} 19. Kh1 {[%clk 0:00:37.7]} 19... Rf4
{[%clk 0:01:08.9]} 20. Qd3 {[%clk 0:00:31.8]} 20... Be5 {[%clk 0:01:02.6]} 21.
Bxd5 {[%clk 0:00:29.4]} 21... exd5 {[%clk 0:01:00.6]} 22. Qxd5+ {[%clk
0:00:30.3]} 22... Kh8 {[%clk 0:00:55]} 23. Rfe1 {[%clk 0:00:26.1]} 23... Rf5
{[%clk 0:00:45.4]} 24. Nd6 {[%clk 0:00:08.4]} 24... Bxd6 {[%clk 0:00:37.2]} 25.
Qxd6 {[%clk 0:00:07.7]} 25... Rf6 {[%clk 0:00:26.1]} 26. Re8+ {[%clk 0:00:04.1]}
26... Kh7 {[%clk 0:00:26.5]} 27. Qd5 {[%clk 0:00:03.6]} 27... Qxd5 {[%clk
0:00:23.1]} 28. Rxd5 {[%clk 0:00:04.5]} 28... Rxf2 {[%clk 0:00:23.4]} 29. Kg1
{[%clk 0:00:03.4]} 29... Rxa2 {[%clk 0:00:22.7]} 30. Nd4 {[%clk 0:00:02.9]}
30... Rd2 {[%clk 0:00:20.5]} 31. Rd6 {[%clk 0:00:02.9]} 31... b6 {[%clk
0:00:19.6]} 32. c6 {[%clk 0:00:01]} 32... dxc6 {[%clk 0:00:19]} 0-1

[Event "Early-Titled-Tuesday-Blitz-May-28-2024"]
[Site "Chess.com"]
[Date "2024.05.28"]
[Round "3"]
[White "zubridis"]
[Black "eagleclaw07"]
[Result "0-1"]
[WhiteElo "2525"]
[BlackElo "2829"]
[TimeControl "180+1"]
[EndTime "8:28:39 PDT"]
[Termination "eagleclaw07 won on time"]

1. Nf3 {[%clk 0:02:59.9]} 1... Nf6 {[%clk 0:02:55.6]} 2. d4 {[%clk 0:02:59.2]}
2... g6 {[%clk 0:02:55.1]} 3. c4 {[%clk 0:02:59.2]} 3... Bg7 {[%clk 0:02:55.6]}
4. e3 {[%clk 0:02:59.7]} 4... O-O {[%clk 0:02:55.8]} 5. Be2 {[%clk 0:02:59.8]}
5... d6 {[%clk 0:02:55.5]} 6. O-O {[%clk 0:02:55.1]} 6... Nbd7 {[%clk
0:02:55.4]} 7. Nc3 {[%clk 0:02:55.5]} 7... e5 {[%clk 0:02:55.7]} 8. b4 {[%clk
0:02:54.8]} 8... e4 {[%clk 0:02:54.7]} 9. Nd2 {[%clk 0:02:54.5]} 9... Re8 {[%clk
0:02:55]} 10. Qc2 {[%clk 0:02:30.7]} 10... Qe7 {[%clk 0:02:51.7]} 11. a4 {[%clk
0:02:27.7]} 11... Nf8 {[%clk 0:02:51.6]} 12. b5 {[%clk 0:02:21.1]} 12... h5
{[%clk 0:02:51.7]} 13. Ba3 {[%clk 0:02:11.1]} 13... h4 {[%clk 0:02:51.8]} 14.
Rfc1 {[%clk 0:02:02.1]} 14... h3 {[%clk 0:02:49.2]} 15. g3 {[%clk 0:02:01.9]}
15... N8h7 {[%clk 0:02:30.1]} 16. Nd5 {[%clk 0:01:47.9]} 16... Qd8 {[%clk
0:02:05.1]} 17. a5 {[%clk 0:01:46.2]} 17... Ng5 {[%clk 0:01:58.9]} 18. b6 {[%clk
0:01:01.6]} 18... axb6 {[%clk 0:01:58]} 19. axb6 {[%clk 0:00:58.4]} 19... cxb6
{[%clk 0:01:41.5]} 20. Bb4 {[%clk 0:00:19.2]} 20... Ra6 {[%clk 0:01:36.3]} 21.
Ra3 {[%clk 0:00:13.5]} 21... Bf5 {[%clk 0:00:51.4]} 22. Qa2 {[%clk 0:00:09.6]}
22... Bc8 {[%clk 0:00:27.8]} 23. Rxa6 {[%clk 0:00:05.3]} 23... bxa6 {[%clk
0:00:28.7]} 24. Qa3 {[%clk 0:00:05.7]} 24... Nxd5 {[%clk 0:00:23.2]} 25. cxd5
{[%clk 0:00:05.5]} 25... Bf8 {[%clk 0:00:23.7]} 26. Nc4 {[%clk 0:00:01.5]} 26...
Qf6 {[%clk 0:00:12.7]} 27. Nxd6 {[%clk 0:00:00.6]} 27... Nf3+ {[%clk 0:00:13.1]}
0-1

[Event "Early-Titled-Tuesday-Blitz-May-28-2024"]
[Site "Chess.com"]
[Date "2024.05.28"]
[Round "3"]
[White "Sofia_Blokhin"]
[Black "Preobrazhenska_D2011"]
[Result "0-1"]
[WhiteElo "2262"]
[BlackElo "2516"]
[TimeControl "180+1"]
[EndTime "8:28:41 PDT"]
[Termination "Preobrazhenska_D2011 won by checkmate"]

1. d4 {[%clk 0:03:00.9]} 1... Nf6 {[%clk 0:02:58.3]} 2. c4 {[%clk 0:03:00.1]}
2... e6 {[%clk 0:02:58.3]} 3. Nc3 {[%clk 0:02:59.8]} 3... Bb4 {[%clk 0:02:58.3]}
4. e3 {[%clk 0:03:00.1]} 4... O-O {[%clk 0:02:58.4]} 5. Bd3 {[%clk 0:02:59]}
5... d5 {[%clk 0:02:54.8]} 6. Ne2 {[%clk 0:02:53.5]} 6... b6 {[%clk 0:02:47.4]}
7. cxd5 {[%clk 0:02:51.5]} 7... exd5 {[%clk 0:02:40.9]} 8. f3 {[%clk 0:02:50.3]}
8... c5 {[%clk 0:02:36.6]} 9. O-O {[%clk 0:02:47.7]} 9... Re8 {[%clk 0:02:27.6]}
10. a3 {[%clk 0:02:46.5]} 10... Ba5 {[%clk 0:02:15.6]} 11. Bb5 {[%clk
0:02:17.1]} 11... Bd7 {[%clk 0:02:06.5]} 12. Bxd7 {[%clk 0:02:09.5]} 12... Qxd7
{[%clk 0:02:07.4]} 13. Na2 {[%clk 0:02:02]} 13... c4 {[%clk 0:01:55.5]} 14. b4
{[%clk 0:01:47.2]} 14... cxb3 {[%clk 0:01:50.6]} 15. Qxb3 {[%clk 0:01:47.2]}
15... b5 {[%clk 0:01:46.1]} 16. Nb4 {[%clk 0:01:39.6]} 16... Bc7 {[%clk
0:01:42.3]} 17. Nd3 {[%clk 0:01:38]} 17... a6 {[%clk 0:01:35.1]} 18. Nc5 {[%clk
0:01:36.5]} 18... Qd6 {[%clk 0:01:33.6]} 19. g3 {[%clk 0:01:29.9]} 19... Nbd7
{[%clk 0:01:25.8]} 20. Nxd7 {[%clk 0:01:08.5]} 20... Qxd7 {[%clk 0:01:26.7]} 21.
Bd2 {[%clk 0:01:03.7]} 21... h5 {[%clk 0:01:14.9]} 22. Rac1 {[%clk 0:01:01.9]}
22... h4 {[%clk 0:01:13.9]} 23. Kg2 {[%clk 0:00:46.2]} 23... Bd6 {[%clk
0:00:56.5]} 24. Rc2 {[%clk 0:00:42.5]} 24... Rac8 {[%clk 0:00:50.7]} 25. Rfc1
{[%clk 0:00:42.5]} 25... Rc4 {[%clk 0:00:51.1]} 26. Nc3 {[%clk 0:00:28.4]} 26...
Qf5 {[%clk 0:00:44.6]} 27. a4 {[%clk 0:00:17.5]} 27... h3+ {[%clk 0:00:43.4]}
28. Kf2 {[%clk 0:00:16.2]} 28... Ng4+ {[%clk 0:00:40]} 29. Ke2 {[%clk
0:00:16.1]} 29... Nxh2 {[%clk 0:00:39]} 30. f4 {[%clk 0:00:07.3]} 30... Qg4+
{[%clk 0:00:38.1]} 31. Kd3 {[%clk 0:00:06.4]} 31... Qg6+ {[%clk 0:00:36.2]} 32.
Ke2 {[%clk 0:00:05.7]} 32... Qxg3 {[%clk 0:00:36.5]} 33. axb5 {[%clk 0:00:02.6]}
33... Qg2+ {[%clk 0:00:30]} 34. Kd3 {[%clk 0:00:02.3]} 34... Qg6+ {[%clk
0:00:30.5]} 35. Ke2 {[%clk 0:00:02.6]} 35... Rxd4 {[%clk 0:00:30]} 36. bxa6
{[%clk 0:00:01.7]} 36... Qg2+ {[%clk 0:00:29.7]} 37. Kd1 {[%clk 0:00:01.1]}
37... Qf1# {[%clk 0:00:29.7]} 0-1

[Event "Early-Titled-Tuesday-Blitz-May-28-2024"]
[Site "Chess.com"]
[Date "2024.05.28"]
[Round "3"]
[White "KVAIDAN"]
[Black "VacheH009"]
[Result "0-1"]
[WhiteElo "2321"]
[BlackElo "2547"]
[TimeControl "180+1"]
[EndTime "8:28:42 PDT"]
[Termination "VacheH009 won by checkmate"]

1. f4 {[%clk 0:03:00.1]} 1... d5 {[%clk 0:02:56.7]} 2. Nf3 {[%clk 0:03:00.5]}
2... g6 {[%clk 0:02:56.8]} 3. e3 {[%clk 0:03:00.6]} 3... Bg7 {[%clk 0:02:57.2]}
4. Be2 {[%clk 0:02:59.5]} 4... c5 {[%clk 0:02:56.4]} 5. O-O {[%clk 0:02:59.9]}
5... Nc6 {[%clk 0:02:56]} 6. d3 {[%clk 0:03:00.3]} 6... Nf6 {[%clk 0:02:53.6]}
7. Kh1 {[%clk 0:03:00.7]} 7... O-O {[%clk 0:02:52.9]} 8. a4 {[%clk 0:03:01.1]}
8... b6 {[%clk 0:02:42.5]} 9. Ne5 {[%clk 0:03:00.6]} 9... Bb7 {[%clk 0:02:41.8]}
10. Nxc6 {[%clk 0:03:00.5]} 10... Bxc6 {[%clk 0:02:42.7]} 11. Qe1 {[%clk
0:02:59.7]} 11... Nd7 {[%clk 0:02:35.6]} 12. Qg3 {[%clk 0:02:55.6]} 12... f5
{[%clk 0:02:30.1]} 13. Bf3 {[%clk 0:02:49.6]} 13... e5 {[%clk 0:02:23.7]} 14. c4
{[%clk 0:02:49.8]} 14... exf4 {[%clk 0:02:08.9]} 15. exf4 {[%clk 0:02:46.8]}
15... Nf6 {[%clk 0:02:08]} 16. Nc3 {[%clk 0:02:43.4]} 16... Qd7 {[%clk
0:02:05.1]} 17. a5 {[%clk 0:02:41]} 17... d4 {[%clk 0:01:50.2]} 18. Bxc6 {[%clk
0:02:15.6]} 18... Qxc6 {[%clk 0:01:51.1]} 19. Na4 {[%clk 0:02:11.2]} 19... Rfe8
{[%clk 0:01:44.9]} 20. Bd2 {[%clk 0:01:54.3]} 20... Re2 {[%clk 0:01:41.8]} 21.
Rf2 {[%clk 0:01:54.3]} 21... Nh5 {[%clk 0:01:33.9]} 22. Rxe2 {[%clk 0:01:49.9]}
22... Nxg3+ {[%clk 0:01:33.2]} 23. hxg3 {[%clk 0:01:50.4]} 23... b5 {[%clk
0:01:26.4]} 24. cxb5 {[%clk 0:01:42.4]} 24... Qxb5 {[%clk 0:01:27.3]} 25. Be1
{[%clk 0:01:39.7]} 25... Qxd3 {[%clk 0:01:20.8]} 26. Re7 {[%clk 0:01:39.9]}
26... Qb5 {[%clk 0:01:16.4]} 27. Rc7 {[%clk 0:01:36.3]} 27... Bf8 {[%clk
0:01:15.5]} 28. Kh2 {[%clk 0:01:28.9]} 28... c4 {[%clk 0:01:05.4]} 29. Bf2
{[%clk 0:01:23.7]} 29... d3 {[%clk 0:01:04.5]} 30. Bxa7 {[%clk 0:01:21.9]} 30...
Qxa5 {[%clk 0:00:56.3]} 31. Bb6 {[%clk 0:01:17]} 31... Qb5 {[%clk 0:00:54.7]}
32. Bd4 {[%clk 0:00:54.7]} 32... Rxa4 {[%clk 0:00:52.1]} 33. Re1 {[%clk
0:00:55.1]} 33... Ra8 {[%clk 0:00:50.7]} 34. Bc3 {[%clk 0:00:54.5]} 34... Re8
{[%clk 0:00:44.2]} 35. Ra1 {[%clk 0:00:52]} 35... Re7 {[%clk 0:00:40]} 36. Rc8
{[%clk 0:00:51.6]} 36... Kf7 {[%clk 0:00:38.6]} 37. Ra5 {[%clk 0:00:48.7]} 37...
Qd7 {[%clk 0:00:33.8]} 38. Rac5 {[%clk 0:00:48.5]} 38... Bg7 {[%clk 0:00:33.3]}
39. Bb4 {[%clk 0:00:44.6]} 39... d2 {[%clk 0:00:30.8]} 40. Bxd2 {[%clk
0:00:40.9]} 40... Qxd2 {[%clk 0:00:31.1]} 41. Rxc4 {[%clk 0:00:41.8]} 41... Bf6
{[%clk 0:00:28.5]} 42. b4 {[%clk 0:00:40.8]} 42... Re2 {[%clk 0:00:25.6]} 43.
R8c7+ {[%clk 0:00:39.8]} 43... Be7 {[%clk 0:00:25.9]} 44. Rc2 {[%clk 0:00:26.7]}
44... Rxg2+ {[%clk 0:00:24.9]} 45. Kh3 {[%clk 0:00:26.9]} 45... Rh2# {[%clk
0:00:25.2]} 0-1

[Event "Early-Titled-Tuesday-Blitz-May-28-2024"]
[Site "Chess.com"]
[Date "2024.05.28"]
[Round "3"]
[White "Nechitaylo_Nikita"]
[Black "Javadovvv"]
[Result "1-0"]
[WhiteElo "2340"]
[BlackElo "2588"]
[TimeControl "180+1"]
[EndTime "8:28:51 PDT"]
[Termination "Nechitaylo_Nikita won by resignation"]

1. d4 {[%clk 0:03:00.9]} 1... e6 {[%clk 0:02:59.6]} 2. c4 {[%clk 0:03:01.1]}
2... d5 {[%clk 0:03:00.1]} 3. Nc3 {[%clk 0:03:01.1]} 3... a6 {[%clk 0:03:00.5]}
4. cxd5 {[%clk 0:03:00.5]} 4... exd5 {[%clk 0:03:00.9]} 5. Nf3 {[%clk
0:03:00.4]} 5... Nf6 {[%clk 0:03:01.5]} 6. Bg5 {[%clk 0:02:59.7]} 6... Be6
{[%clk 0:03:02.1]} 7. e3 {[%clk 0:02:59.1]} 7... Nbd7 {[%clk 0:03:02.7]} 8. Bd3
{[%clk 0:02:57.6]} 8... Bd6 {[%clk 0:03:03.2]} 9. O-O {[%clk 0:02:56]} 9... c6
{[%clk 0:03:03.5]} 10. Re1 {[%clk 0:02:45.9]} 10... O-O {[%clk 0:03:00.2]} 11.
Qc2 {[%clk 0:02:39.3]} 11... Qc7 {[%clk 0:02:59.8]} 12. Rab1 {[%clk 0:02:35.6]}
12... h6 {[%clk 0:02:47.3]} 13. Bh4 {[%clk 0:02:33.9]} 13... Rac8 {[%clk
0:02:47]} 14. b4 {[%clk 0:02:32.6]} 14... Rfe8 {[%clk 0:02:47.2]} 15. h3 {[%clk
0:02:25.5]} 15... g5 {[%clk 0:02:43.9]} 16. Bg3 {[%clk 0:02:19.5]} 16... Bxg3
{[%clk 0:02:43.5]} 17. fxg3 {[%clk 0:02:18.8]} 17... Qxg3 {[%clk 0:02:44.4]} 18.
Ne2 {[%clk 0:02:01.4]} 18... Qd6 {[%clk 0:02:40.8]} 19. Rf1 {[%clk 0:01:46.7]}
19... Kg7 {[%clk 0:02:40.2]} 20. Qc3 {[%clk 0:01:43.4]} 20... Rc7 {[%clk
0:02:25.7]} 21. h4 {[%clk 0:01:33.4]} 21... g4 {[%clk 0:02:04]} 22. Ne5 {[%clk
0:01:33.4]} 22... Qe7 {[%clk 0:01:49.7]} 23. Nf4 {[%clk 0:01:10.9]} 23... Nf8
{[%clk 0:01:44.3]} 24. Bc2 {[%clk 0:00:50.9]} 24... Bc8 {[%clk 0:01:41.8]} 25.
Qd3 {[%clk 0:00:46]} 25... Qd6 {[%clk 0:01:33.7]} 26. a4 {[%clk 0:00:28.9]}
26... Rce7 {[%clk 0:01:32.7]} 27. b5 {[%clk 0:00:12.7]} 27... axb5 {[%clk
0:01:33.6]} 28. axb5 {[%clk 0:00:13.6]} 28... c5 {[%clk 0:01:33.7]} 29. Qc3
{[%clk 0:00:07.7]} 29... b6 {[%clk 0:01:26]} 30. Rbe1 {[%clk 0:00:04]} 30... Bb7
{[%clk 0:01:22.3]} 31. h5 {[%clk 0:00:01.9]} 31... Bc8 {[%clk 0:01:21.9]} 32.
Rd1 {[%clk 0:00:01]} 32... Bb7 {[%clk 0:01:22.1]} 33. Rde1 {[%clk 0:00:01.3]}
33... cxd4 {[%clk 0:01:20.7]} 34. exd4 {[%clk 0:00:01.3]} 34... Rc7 {[%clk
0:01:13.6]} 35. Qd3 {[%clk 0:00:01.7]} 35... Rec8 {[%clk 0:01:13.1]} 36. Bb1
{[%clk 0:00:01.6]} 36... Rc3 {[%clk 0:01:13.1]} 37. Qf5 {[%clk 0:00:01.4]} 37...
Rg3 {[%clk 0:00:57.2]} 38. Nxf7 {[%clk 0:00:01.4]} 38... Kxf7 {[%clk 0:00:52.8]}
39. Ng6 {[%clk 0:00:01.5]} 39... Ne6 {[%clk 0:00:40.1]} 40. Qxf6+ {[%clk
0:00:01]} 40... Kg8 {[%clk 0:00:38.3]} 41. Rxe6 {[%clk 0:00:01.4]} 41... Rxg2+
{[%clk 0:00:37.2]} 42. Kxg2 {[%clk 0:00:02.3]} 42... Rc2+ {[%clk 0:00:35.1]} 43.
Bxc2 {[%clk 0:00:02.4]} 1-0

[Event "Early-Titled-Tuesday-Blitz-May-28-2024"]
[Site "Chess.com"]
[Date "2024.05.28"]
[Round "3"]
[White "el_sporco"]
[Black "scarabee43"]
[Result "0-1"]
[WhiteElo "2522"]
[BlackElo "2818"]
[TimeControl "180+1"]
[EndTime "8:28:53 PDT"]
[Termination "scarabee43 won by resignation"]

1. e4 {[%clk 0:02:59.9]} 1... c5 {[%clk 0:02:58.8]} 2. Nf3 {[%clk 0:02:59.6]}
2... Nc6 {[%clk 0:02:58.1]} 3. Bb5 {[%clk 0:02:59.2]} 3... e6 {[%clk 0:02:49.6]}
4. O-O {[%clk 0:02:58.5]} 4... Nge7 {[%clk 0:02:49.3]} 5. Re1 {[%clk 0:02:59.1]}
5... a6 {[%clk 0:02:48.9]} 6. Bxc6 {[%clk 0:02:59.7]} 6... Nxc6 {[%clk
0:02:49.2]} 7. d4 {[%clk 0:03:00.6]} 7... cxd4 {[%clk 0:02:48.3]} 8. Nxd4 {[%clk
0:03:01.5]} 8... Qb6 {[%clk 0:02:46.4]} 9. Nb3 {[%clk 0:02:59.7]} 9... Be7
{[%clk 0:02:46.3]} 10. Be3 {[%clk 0:02:59.7]} 10... Qc7 {[%clk 0:02:46.3]} 11.
c4 {[%clk 0:03:00.3]} 11... O-O {[%clk 0:02:45.5]} 12. N1d2 {[%clk 0:02:54.3]}
12... b5 {[%clk 0:02:31.7]} 13. Rc1 {[%clk 0:02:52]} 13... b4 {[%clk 0:02:22]}
14. c5 {[%clk 0:02:44.4]} 14... a5 {[%clk 0:02:12.8]} 15. Nc4 {[%clk 0:02:44.4]}
15... Ba6 {[%clk 0:02:11]} 16. Nb6 {[%clk 0:02:38.8]} 16... Ra7 {[%clk
0:02:02.8]} 17. Nd4 {[%clk 0:02:24.5]} 17... Bf6 {[%clk 0:01:53.3]} 18. Nxc6
{[%clk 0:02:19.3]} 18... dxc6 {[%clk 0:01:53.5]} 19. Bd4 {[%clk 0:02:14.7]}
19... Rd8 {[%clk 0:01:48.5]} 20. e5 {[%clk 0:02:10.4]} 20... Bg5 {[%clk
0:01:43.3]} 21. Rc2 {[%clk 0:01:59.2]} 21... Bb5 {[%clk 0:01:35.6]} 22. Qg4
{[%clk 0:01:56.2]} 22... Bh6 {[%clk 0:01:32.5]} 23. b3 {[%clk 0:01:31.1]} 23...
Qe7 {[%clk 0:01:22.4]} 24. Rd1 {[%clk 0:01:25]} 24... a4 {[%clk 0:01:15.2]} 25.
Bb2 {[%clk 0:01:22.3]} 25... axb3 {[%clk 0:01:14]} 26. axb3 {[%clk 0:01:23.2]}
26... Ra2 {[%clk 0:01:10.4]} 27. Rd4 {[%clk 0:00:55.3]} 27... Bd3 {[%clk
0:01:03.9]} 28. Rxd8+ {[%clk 0:00:21.5]} 28... Qxd8 {[%clk 0:01:03.3]} 29. Qd1
{[%clk 0:00:22.2]} 29... Bg5 {[%clk 0:00:57.4]} 30. Rd2 {[%clk 0:00:16.9]} 30...
Bxd2 {[%clk 0:00:55.7]} 31. Qxd2 {[%clk 0:00:17.8]} 31... Qh4 {[%clk 0:00:32.7]}
32. h3 {[%clk 0:00:14]} 32... Be4 {[%clk 0:00:29]} 33. Qd4 {[%clk 0:00:05.3]}
33... h5 {[%clk 0:00:22.9]} 34. Bc1 {[%clk 0:00:02.3]} 34... Rc2 {[%clk
0:00:20]} 35. Qe3 {[%clk 0:00:02.6]} 35... Rc3 {[%clk 0:00:17]} 36. Qd2 {[%clk
0:00:01.9]} 36... Bd5 {[%clk 0:00:17.1]} 37. Nxd5 {[%clk 0:00:01.6]} 37... cxd5
{[%clk 0:00:17.6]} 38. c6 {[%clk 0:00:01.9]} 38... Rxc6 {[%clk 0:00:17.5]} 39.
Bb2 {[%clk 0:00:02]} 39... Qe4 {[%clk 0:00:17.1]} 40. Qd4 {[%clk 0:00:02.4]}
40... Qxd4 {[%clk 0:00:17.4]} 41. Bxd4 {[%clk 0:00:03.3]} 41... Rc1+ {[%clk
0:00:17.6]} 42. Kh2 {[%clk 0:00:03.1]} 42... Rb1 {[%clk 0:00:18.3]} 0-1